[Event "Late-Titled-Tuesday-Blitz-February-06-2024"]
[Site "Chess.com"]
[Date "2024.02.06"]
[Round "3"]
[White "dretch"]
[Black "Konavets"]
[Result "1-0"]
[WhiteElo "2823"]
[BlackElo "3110"]
[TimeControl "180+1"]
[EndTime "14:29:12 PST"]
[Termination "dretch won by resignation"]

1. d4 {[%clk 0:03:00.9]} 1... b5 {[%clk 0:03:00.5]} 2. e4 {[%clk 0:02:58.5]}
2... a6 {[%clk 0:03:00.9]} 3. Bd3 {[%clk 0:02:56.9]} 3... Bb7 {[%clk 0:03:01.2]}
4. Nf3 {[%clk 0:02:57.3]} 4... e6 {[%clk 0:03:01.6]} 5. O-O {[%clk 0:02:55.2]}
5... Be7 {[%clk 0:03:02.2]} 6. Re1 {[%clk 0:02:52.6]} 6... Nf6 {[%clk 0:03:02]}
7. e5 {[%clk 0:02:51.9]} 7... Nd5 {[%clk 0:03:02.2]} 8. Nbd2 {[%clk 0:02:45.8]}
8... d6 {[%clk 0:03:02]} 9. Ne4 {[%clk 0:02:45.4]} 9... Nd7 {[%clk 0:02:59.9]}
10. c3 {[%clk 0:02:36.3]} 10... dxe5 {[%clk 0:02:59.1]} 11. Nxe5 {[%clk
0:02:36.6]} 11... Nxe5 {[%clk 0:02:47.1]} 12. dxe5 {[%clk 0:02:36.5]} 12... c5
{[%clk 0:02:48]} 13. Qg4 {[%clk 0:02:34.6]} 13... Nxc3 {[%clk 0:02:06.6]} 14.
Qxg7 {[%clk 0:02:30.5]} 14... Qxd3 {[%clk 0:02:06.9]} 15. Qxh8+ {[%clk
0:01:47.7]} 15... Kd7 {[%clk 0:02:06.9]} 16. Nf6+ {[%clk 0:01:47.2]} 16... Kc7
{[%clk 0:01:33.9]} 17. Qxh7 {[%clk 0:01:43.6]} 17... Ne2+ {[%clk 0:01:32.3]} 18.
Kh1 {[%clk 0:01:18.6]} 18... Qf3 {[%clk 0:01:31.3]} 19. Qg7 {[%clk 0:01:18.6]}
19... Qxf2 {[%clk 0:01:27.7]} 20. Bh6 {[%clk 0:01:18.9]} 20... Rh8 {[%clk
0:00:38.9]} 21. Rf1 {[%clk 0:00:27]} 21... Ng3+ {[%clk 0:00:16.7]} 22. Qxg3
{[%clk 0:00:22]} 22... Qxg3 {[%clk 0:00:17]} 23. hxg3 {[%clk 0:00:19.5]} 23...
Rxh6+ {[%clk 0:00:17.2]} 24. Kg1 {[%clk 0:00:20.1]} 24... Bc6 {[%clk 0:00:17.9]}
25. Ng8 {[%clk 0:00:18.3]} 25... Bg5 {[%clk 0:00:13.8]} 26. Rxf7+ {[%clk
0:00:16.6]} 26... Kb6 {[%clk 0:00:14.2]} 27. Nxh6 {[%clk 0:00:16.8]} 27... Bxh6
{[%clk 0:00:15.1]} 28. Rf6 {[%clk 0:00:17.4]} 28... Be3+ {[%clk 0:00:15]} 29.
Kh2 {[%clk 0:00:17.5]} 29... Bd5 {[%clk 0:00:15.5]} 30. Rd1 {[%clk 0:00:17.5]}
30... Bxa2 {[%clk 0:00:15.8]} 31. b3 {[%clk 0:00:17.3]} 31... Bd4 {[%clk
0:00:14.7]} 32. Rxe6+ {[%clk 0:00:17.2]} 32... Kc7 {[%clk 0:00:14.2]} 33. Rd3
{[%clk 0:00:17.1]} 33... a5 {[%clk 0:00:13.4]} 34. Ra6 {[%clk 0:00:16.2]} 34...
a4 {[%clk 0:00:11.1]} 35. bxa4 {[%clk 0:00:15.8]} 35... b4 {[%clk 0:00:11.4]}
36. e6 {[%clk 0:00:16.1]} 36... b3 {[%clk 0:00:10.3]} 37. e7 {[%clk 0:00:15.3]}
37... Kd7 {[%clk 0:00:10.2]} 38. Ra7+ {[%clk 0:00:15.7]} 38... Ke8 {[%clk
0:00:10.6]} 39. Rf3 {[%clk 0:00:15.9]} 39... Bg7 {[%clk 0:00:11.3]} 40. Re3
{[%clk 0:00:16.4]} 1-0

[Event "Late-Titled-Tuesday-Blitz-February-06-2024"]
[Site "Chess.com"]
[Date "2024.02.06"]
[Round "3"]
[White "tgpgoat"]
[Black "Goryachkina"]
[Result "0-1"]
[WhiteElo "2461"]
[BlackElo "2675"]
[TimeControl "180+1"]
[EndTime "14:29:12 PST"]
[Termination "Goryachkina won by resignation"]

1. Nf3 {[%clk 0:02:30.2]} 1... c5 {[%clk 0:02:58.5]} 2. g3 {[%clk 0:02:30.2]}
2... g6 {[%clk 0:02:57.8]} 3. Bg2 {[%clk 0:02:30.8]} 3... Bg7 {[%clk 0:02:58.1]}
4. O-O {[%clk 0:02:31.7]} 4... Nf6 {[%clk 0:02:57.8]} 5. c3 {[%clk 0:02:32.2]}
5... O-O {[%clk 0:02:51.1]} 6. d4 {[%clk 0:02:33.1]} 6... d5 {[%clk 0:02:51.1]}
7. Bf4 {[%clk 0:02:31.4]} 7... Nc6 {[%clk 0:02:47.9]} 8. Nbd2 {[%clk 0:02:28.7]}
8... cxd4 {[%clk 0:02:41.4]} 9. cxd4 {[%clk 0:02:28.3]} 9... Bf5 {[%clk
0:02:36]} 10. Nb3 {[%clk 0:02:27.9]} 10... Rc8 {[%clk 0:02:31.6]} 11. Rc1 {[%clk
0:02:27.2]} 11... Ne4 {[%clk 0:02:30]} 12. Nfd2 {[%clk 0:02:22.5]} 12... Nb4
{[%clk 0:02:25.3]} 13. Nxe4 {[%clk 0:02:20.5]} 13... Bxe4 {[%clk 0:02:25]} 14.
Bxe4 {[%clk 0:02:20.2]} 14... dxe4 {[%clk 0:02:25.2]} 15. a3 {[%clk 0:02:18.4]}
15... Nd5 {[%clk 0:02:24.4]} 16. Bd2 {[%clk 0:02:09.2]} 16... b6 {[%clk
0:02:21.8]} 17. Bc3 {[%clk 0:02:06.3]} 17... Qd7 {[%clk 0:02:20.4]} 18. Qd2
{[%clk 0:02:00.4]} 18... Qa4 {[%clk 0:02:17.8]} 19. Na1 {[%clk 0:01:54.1]} 19...
Nxc3 {[%clk 0:02:16.8]} 20. bxc3 {[%clk 0:01:49.8]} 20... Qxa3 {[%clk
0:02:16.9]} 21. Qe3 {[%clk 0:01:47.4]} 21... e6 {[%clk 0:02:15.6]} 22. Qxe4
{[%clk 0:01:44.1]} 22... Rxc3 {[%clk 0:02:14.4]} 23. Rxc3 {[%clk 0:01:39.7]}
23... Qxc3 {[%clk 0:02:15.3]} 24. e3 {[%clk 0:01:40.2]} 24... Rc8 {[%clk
0:01:40.1]} 25. Qb7 {[%clk 0:01:36]} 25... Qc7 {[%clk 0:01:39.8]} 26. Qa6 {[%clk
0:01:36]} 26... h5 {[%clk 0:01:37.9]} 27. Nb3 {[%clk 0:01:34.7]} 27... Qc4
{[%clk 0:01:36.2]} 28. Qa3 {[%clk 0:01:27]} 28... a5 {[%clk 0:01:32]} 29. Nd2
{[%clk 0:01:15.8]} 29... Qc2 {[%clk 0:01:23.9]} 30. Nf3 {[%clk 0:01:13.2]} 30...
a4 {[%clk 0:01:18.2]} 31. Qe7 {[%clk 0:01:11.4]} 31... b5 {[%clk 0:01:09.4]} 32.
Ng5 {[%clk 0:01:03.1]} 32... Qc7 {[%clk 0:01:08.2]} 33. Qb4 {[%clk 0:01:01]}
33... Qb7 {[%clk 0:01:01]} 34. Rb1 {[%clk 0:00:56.9]} 34... Bf8 {[%clk
0:01:00.6]} 35. Qb2 {[%clk 0:00:28.4]} 35... b4 {[%clk 0:00:53.9]} 36. g4 {[%clk
0:00:26.2]} 36... hxg4 {[%clk 0:00:46.8]} 37. Qe2 {[%clk 0:00:25.7]} 37... Be7
{[%clk 0:00:43.9]} 38. h4 {[%clk 0:00:20.1]} 38... Bxg5 {[%clk 0:00:26.9]} 39.
hxg5 {[%clk 0:00:21]} 39... b3 {[%clk 0:00:26.9]} 40. Qxg4 {[%clk 0:00:20]}
40... b2 {[%clk 0:00:26.4]} 41. Kh2 {[%clk 0:00:19.4]} 41... a3 {[%clk
0:00:25.4]} 42. Rh1 {[%clk 0:00:19.4]} 42... Qxh1+ {[%clk 0:00:23.8]} 0-1

[Event "Late-Titled-Tuesday-Blitz-February-06-2024"]
[Site "Chess.com"]
[Date "2024.02.06"]
[Round "3"]
[White "maurovargas01"]
[Black "pooh2012"]
[Result "0-1"]
[WhiteElo "1902"]
[BlackElo "2531"]
[TimeControl "180+1"]
[EndTime "14:29:12 PST"]
[Termination "pooh2012 won on time"]

1. e4 {[%clk 0:03:00]} 1... e6 {[%clk 0:02:57.6]} 2. f4 {[%clk 0:02:59.6]} 2...
d5 {[%clk 0:02:54.4]} 3. e5 {[%clk 0:02:58.4]} 3... c5 {[%clk 0:02:53]} 4. c4
{[%clk 0:02:53.7]} 4... Ne7 {[%clk 0:02:48.4]} 5. cxd5 {[%clk 0:02:53.4]} 5...
Nxd5 {[%clk 0:02:47.2]} 6. Nf3 {[%clk 0:02:53.3]} 6... Nxf4 {[%clk 0:02:43.7]}
7. Qa4+ {[%clk 0:02:52.7]} 7... Nc6 {[%clk 0:02:32]} 8. Qxf4 {[%clk 0:02:52.7]}
8... Be7 {[%clk 0:02:31]} 9. Bb5 {[%clk 0:02:47.7]} 9... O-O {[%clk 0:02:29.9]}
10. Bxc6 {[%clk 0:02:46.7]} 10... bxc6 {[%clk 0:02:30.1]} 11. O-O {[%clk
0:02:46.5]} 11... a5 {[%clk 0:02:25.6]} 12. Nc3 {[%clk 0:02:46.3]} 12... Ba6
{[%clk 0:02:23.4]} 13. Re1 {[%clk 0:02:45.7]} 13... Bd3 {[%clk 0:02:19.8]} 14.
Qg3 {[%clk 0:02:35.3]} 14... c4 {[%clk 0:02:17.6]} 15. Ne4 {[%clk 0:02:25.4]}
15... Kh8 {[%clk 0:02:07.6]} 16. b3 {[%clk 0:02:21.3]} 16... cxb3 {[%clk
0:02:03.2]} 17. axb3 {[%clk 0:02:12]} 17... Qd5 {[%clk 0:01:56.1]} 18. Nd6
{[%clk 0:01:55]} 18... Bg6 {[%clk 0:01:22]} 19. Nc4 {[%clk 0:01:50.3]} 19...
Rfb8 {[%clk 0:01:15.8]} 20. Ba3 {[%clk 0:01:43.1]} 20... Rxb3 {[%clk 0:01:00.3]}
21. Ne3 {[%clk 0:01:25.2]} 21... Qd7 {[%clk 0:00:11.7]} 22. Bxe7 {[%clk
0:01:24.3]} 22... Qxe7 {[%clk 0:00:12.6]} 23. Rec1 {[%clk 0:01:21.3]} 23... a4
{[%clk 0:00:08.7]} 24. Rxc6 {[%clk 0:01:03.9]} 24... a3 {[%clk 0:00:07.5]} 25.
Qf4 {[%clk 0:00:39.2]} 25... h6 {[%clk 0:00:06.5]} 26. Qc4 {[%clk 0:00:33.3]}
26... Qb7 {[%clk 0:00:06.1]} 27. Rc7 {[%clk 0:00:11.5]} 27... Rb1+ {[%clk
0:00:06.2]} 28. Rxb1 {[%clk 0:00:03.8]} 28... Qxb1+ {[%clk 0:00:07.1]} 0-1

[Event "Late-Titled-Tuesday-Blitz-February-06-2024"]
[Site "Chess.com"]
[Date "2024.02.06"]
[Round "3"]
[White "Mackster23"]
[Black "LiemLe"]
[Result "0-1"]
[WhiteElo "2754"]
[BlackElo "3033"]
[TimeControl "180+1"]
[EndTime "14:29:13 PST"]
[Termination "LiemLe won by resignation"]

1. e4 {[%clk 0:03:00.9]} 1... c5 {[%clk 0:02:59.7]} 2. Nf3 {[%clk 0:03:01.2]}
2... Nc6 {[%clk 0:03:00.2]} 3. d4 {[%clk 0:03:01.8]} 3... cxd4 {[%clk
0:03:01.1]} 4. Nxd4 {[%clk 0:03:02.5]} 4... e5 {[%clk 0:03:01.2]} 5. Nb5 {[%clk
0:03:02.6]} 5... d6 {[%clk 0:03:01.7]} 6. N1c3 {[%clk 0:03:01.4]} 6... a6 {[%clk
0:03:02.2]} 7. Na3 {[%clk 0:03:01.5]} 7... Be6 {[%clk 0:03:02.9]} 8. Nc4 {[%clk
0:03:01.3]} 8... Rb8 {[%clk 0:03:02.8]} 9. a4 {[%clk 0:02:54.9]} 9... Nf6 {[%clk
0:02:47.8]} 10. Bg5 {[%clk 0:02:51.1]} 10... Nb4 {[%clk 0:02:48]} 11. Ne3 {[%clk
0:02:23.2]} 11... Rc8 {[%clk 0:02:40.9]} 12. Bd3 {[%clk 0:02:21]} 12... Be7
{[%clk 0:02:37.4]} 13. Bxf6 {[%clk 0:02:16.6]} 13... Bxf6 {[%clk 0:02:37.4]} 14.
Ncd5 {[%clk 0:02:17.1]} 14... Nxd5 {[%clk 0:02:32.4]} 15. exd5 {[%clk 0:02:12]}
15... Bd7 {[%clk 0:02:32.3]} 16. O-O {[%clk 0:02:04.4]} 16... O-O {[%clk
0:02:30.5]} 17. Ng4 {[%clk 0:01:51.6]} 17... Bg5 {[%clk 0:02:12.1]} 18. f3
{[%clk 0:01:37.7]} 18... Qb6+ {[%clk 0:02:01.2]} 19. Nf2 {[%clk 0:01:37.6]}
19... Qxb2 {[%clk 0:01:55.5]} 20. Rb1 {[%clk 0:01:37.7]} 20... Qd4 {[%clk
0:01:49.2]} 21. Rxb7 {[%clk 0:01:36.3]} 21... Bxa4 {[%clk 0:01:49.3]} 22. Qb1
{[%clk 0:01:29.4]} 22... Bb5 {[%clk 0:01:30]} 23. Bxh7+ {[%clk 0:00:34.8]} 23...
Kh8 {[%clk 0:01:27.1]} 24. Bd3 {[%clk 0:00:34.2]} 24... Bxd3 {[%clk 0:01:25.3]}
25. cxd3 {[%clk 0:00:35.1]} 25... Be3 {[%clk 0:01:19.5]} 26. Rb4 {[%clk
0:00:31.8]} 26... Qxd5 {[%clk 0:01:16.8]} 27. Rh4+ {[%clk 0:00:29.4]} 27... Kg8
{[%clk 0:01:16.8]} 28. d4 {[%clk 0:00:29.6]} 28... f5 {[%clk 0:01:05.2]} 29.
dxe5 {[%clk 0:00:29.4]} 29... dxe5 {[%clk 0:01:02.8]} 30. Kh1 {[%clk 0:00:29.4]}
30... a5 {[%clk 0:00:32.4]} 31. Rd1 {[%clk 0:00:22.7]} 31... Bd4 {[%clk
0:00:30]} 32. Nd3 {[%clk 0:00:21.7]} 32... Rfd8 {[%clk 0:00:27.4]} 33. Ne1
{[%clk 0:00:12]} 33... a4 {[%clk 0:00:26]} 34. Qxf5 {[%clk 0:00:11.5]} 34... a3
{[%clk 0:00:21.8]} 35. Qh7+ {[%clk 0:00:11.3]} 35... Kf8 {[%clk 0:00:22.3]} 36.
Qf5+ {[%clk 0:00:09.7]} 36... Qf7 {[%clk 0:00:20.1]} 37. Rh8+ {[%clk 0:00:09.4]}
37... Ke7 {[%clk 0:00:20.6]} 38. Qg5+ {[%clk 0:00:09.8]} 38... Qf6 {[%clk
0:00:20.9]} 39. Qxf6+ {[%clk 0:00:08.9]} 39... gxf6 {[%clk 0:00:21.8]} 40. Rh7+
{[%clk 0:00:08.9]} 40... Ke6 {[%clk 0:00:21]} 0-1

[Event "Late-Titled-Tuesday-Blitz-February-06-2024"]
[Site "Chess.com"]
[Date "2024.02.06"]
[Round "3"]
[White "FredddieCroderg"]
[Black "olawsson"]
[Result "1-0"]
[WhiteElo "2390"]
[BlackElo "2163"]
[TimeControl "180+1"]
[EndTime "14:29:14 PST"]
[Termination "FredddieCroderg won on time"]

1. e4 {[%clk 0:03:00.9]} 1... c5 {[%clk 0:02:59.4]} 2. Nf3 {[%clk 0:02:58.6]}
2... a6 {[%clk 0:02:59.6]} 3. c3 {[%clk 0:02:56.1]} 3... e6 {[%clk 0:02:59.2]}
4. d4 {[%clk 0:02:55.6]} 4... d5 {[%clk 0:02:59.9]} 5. e5 {[%clk 0:02:53.7]}
5... Bd7 {[%clk 0:02:59.2]} 6. Bd3 {[%clk 0:02:50.9]} 6... Bb5 {[%clk
0:02:59.2]} 7. Bxb5+ {[%clk 0:02:50.5]} 7... axb5 {[%clk 0:02:59.3]} 8. O-O
{[%clk 0:02:50.8]} 8... Nc6 {[%clk 0:02:58.3]} 9. a3 {[%clk 0:02:46.6]} 9... b4
{[%clk 0:02:35.8]} 10. Be3 {[%clk 0:02:38.6]} 10... c4 {[%clk 0:02:27.8]} 11.
Ng5 {[%clk 0:02:27.5]} 11... h6 {[%clk 0:02:05.5]} 12. Qh5 {[%clk 0:02:24.7]}
12... g6 {[%clk 0:02:05.8]} 13. Qh3 {[%clk 0:02:23.8]} 13... Bg7 {[%clk
0:02:05.9]} 14. Nf3 {[%clk 0:02:20.6]} 14... Nge7 {[%clk 0:01:55.5]} 15. Nfd2
{[%clk 0:02:10.2]} 15... Nf5 {[%clk 0:01:35.7]} 16. g4 {[%clk 0:02:08.2]} 16...
Nh4 {[%clk 0:01:16.1]} 17. Qg3 {[%clk 0:02:06.7]} 17... h5 {[%clk 0:01:12.7]}
18. h3 {[%clk 0:01:57.3]} 18... hxg4 {[%clk 0:01:07.1]} 19. hxg4 {[%clk
0:01:49.5]} 19... g5 {[%clk 0:00:42.6]} 20. Nf3 {[%clk 0:01:39.7]} 20... Nxf3+
{[%clk 0:00:38.3]} 21. Qxf3 {[%clk 0:01:38.9]} 21... f6 {[%clk 0:00:18.3]} 22.
exf6 {[%clk 0:01:35.8]} 22... Qxf6 {[%clk 0:00:18.5]} 23. Qxf6 {[%clk
0:01:34.7]} 23... Bxf6 {[%clk 0:00:18.2]} 24. Nd2 {[%clk 0:01:32.9]} 24... bxc3
{[%clk 0:00:15.5]} 25. bxc3 {[%clk 0:01:32.2]} 25... Kd7 {[%clk 0:00:14.1]} 26.
Nf3 {[%clk 0:01:30.2]} 26... Kc7 {[%clk 0:00:13.1]} 27. Rfb1 {[%clk 0:01:28.7]}
27... Rag8 {[%clk 0:00:10.9]} 28. Kf1 {[%clk 0:01:22.9]} 28... Na5 {[%clk
0:00:11.1]} 29. Ke2 {[%clk 0:01:10.5]} 29... Nb3 {[%clk 0:00:11.2]} 30. Ra2
{[%clk 0:01:09.4]} 30... Be7 {[%clk 0:00:11.3]} 31. Nd2 {[%clk 0:01:06.1]} 31...
Na5 {[%clk 0:00:08.3]} 32. Rab2 {[%clk 0:01:04]} 32... Ra8 {[%clk 0:00:06.2]}
33. Nf3 {[%clk 0:00:58.2]} 33... Rhg8 {[%clk 0:00:05.9]} 34. Ne5 {[%clk
0:00:56.7]} 34... Bxa3 {[%clk 0:00:05]} 35. Rb5 {[%clk 0:00:50.5]} 35... Nb3
{[%clk 0:00:05.4]} 36. Rh1 {[%clk 0:00:45.8]} 36... Rg7 {[%clk 0:00:03.3]} 37.
Rh6 {[%clk 0:00:39.5]} 37... Bd6 {[%clk 0:00:02.2]} 38. Rxe6 {[%clk 0:00:37.8]}
38... Ra2+ {[%clk 0:00:02.2]} 39. Kf3 {[%clk 0:00:36.5]} 39... Bxe5 {[%clk
0:00:01.6]} 40. Rxe5 {[%clk 0:00:34.5]} 40... Rf7+ {[%clk 0:00:01.2]} 41. Kg3
{[%clk 0:00:33.9]} 41... Kc6 {[%clk 0:00:01.5]} 42. Rbxd5 {[%clk 0:00:30.4]} 1-0

[Event "Late-Titled-Tuesday-Blitz-February-06-2024"]
[Site "Chess.com"]
[Date "2024.02.06"]
[Round "3"]
[White "ahkashefi2800"]
[Black "lachesisQ"]
[Result "0-1"]
[WhiteElo "2527"]
[BlackElo "3073"]
[TimeControl "180+1"]
[EndTime "14:29:17 PST"]
[Termination "lachesisQ won on time"]

1. Nf3 {[%clk 0:03:00.8]} 1... g6 {[%clk 0:02:55.9]} 2. g3 {[%clk 0:03:01.1]}
2... Bg7 {[%clk 0:02:55.7]} 3. Bg2 {[%clk 0:03:01.5]} 3... d5 {[%clk 0:02:56.3]}
4. O-O {[%clk 0:03:01.6]} 4... Nf6 {[%clk 0:02:56.2]} 5. d3 {[%clk 0:02:59.9]}
5... O-O {[%clk 0:02:55.3]} 6. b3 {[%clk 0:02:59.4]} 6... c5 {[%clk 0:02:51.3]}
7. Bb2 {[%clk 0:02:59.3]} 7... Nc6 {[%clk 0:02:51.5]} 8. Nbd2 {[%clk 0:02:59.5]}
8... Qc7 {[%clk 0:02:48.5]} 9. e4 {[%clk 0:02:58.6]} 9... d4 {[%clk 0:02:40]}
10. a4 {[%clk 0:02:58.4]} 10... b6 {[%clk 0:02:38.4]} 11. Nc4 {[%clk 0:02:58.3]}
11... e5 {[%clk 0:02:32.7]} 12. Bc1 {[%clk 0:02:56.5]} 12... h6 {[%clk
0:02:32.2]} 13. Bd2 {[%clk 0:02:56.2]} 13... Kh7 {[%clk 0:02:28.6]} 14. Ne1
{[%clk 0:02:50.1]} 14... Be6 {[%clk 0:02:11.1]} 15. f4 {[%clk 0:02:31.9]} 15...
exf4 {[%clk 0:02:11.2]} 16. Bxf4 {[%clk 0:02:30.8]} 16... Qd7 {[%clk 0:02:09.9]}
17. Nf3 {[%clk 0:02:15.2]} 17... Ng4 {[%clk 0:02:09.3]} 18. Qc1 {[%clk
0:02:10.2]} 18... Rae8 {[%clk 0:01:51.2]} 19. Bd6 {[%clk 0:01:47.5]} 19... Rg8
{[%clk 0:01:39.8]} 20. Bf4 {[%clk 0:01:47.2]} 20... Bxc4 {[%clk 0:01:19]} 21.
bxc4 {[%clk 0:01:46.8]} 21... Ne3 {[%clk 0:01:19.5]} 22. Rf2 {[%clk 0:01:44.5]}
22... Ne5 {[%clk 0:01:08.9]} 23. Bxe5 {[%clk 0:01:02.6]} 23... Bxe5 {[%clk
0:01:07.8]} 24. a5 {[%clk 0:01:03.2]} 24... Bg7 {[%clk 0:00:56.4]} 25. axb6
{[%clk 0:01:02.9]} 25... axb6 {[%clk 0:00:57.3]} 26. Qb2 {[%clk 0:01:00.1]}
26... Ra8 {[%clk 0:00:48.6]} 27. e5 {[%clk 0:00:31]} 27... Rxa1+ {[%clk
0:00:45.2]} 28. Qxa1 {[%clk 0:00:31.1]} 28... Qc7 {[%clk 0:00:45.4]} 29. Qa6
{[%clk 0:00:22.5]} 29... Re8 {[%clk 0:00:44.9]} 30. Qa4 {[%clk 0:00:20.6]} 30...
Re7 {[%clk 0:00:44.7]} 31. Qa6 {[%clk 0:00:13.6]} 31... Bxe5 {[%clk 0:00:43.7]}
32. Nxe5 {[%clk 0:00:13.5]} 32... Rxe5 {[%clk 0:00:44.6]} 33. Be4 {[%clk
0:00:10.2]} 33... Kg7 {[%clk 0:00:44.5]} 34. Qa8 {[%clk 0:00:08.7]} 34... h5
{[%clk 0:00:39.4]} 35. Bf3 {[%clk 0:00:02.9]} 35... Rf5 {[%clk 0:00:36]} 36. Be4
{[%clk 0:00:03]} 36... Rxf2 {[%clk 0:00:36]} 37. Kxf2 {[%clk 0:00:03.5]} 37...
h4 {[%clk 0:00:36.5]} 38. Bd5 {[%clk 0:00:03.2]} 38... hxg3+ {[%clk 0:00:35.2]}
39. hxg3 {[%clk 0:00:03.7]} 39... Nxc2 {[%clk 0:00:35.3]} 0-1

[Event "Late-Titled-Tuesday-Blitz-February-06-2024"]
[Site "Chess.com"]
[Date "2024.02.06"]
[Round "3"]
[White "DanielNaroditsky"]
[Black "GMKrikor"]
[Result "1-0"]
[WhiteElo "3207"]
[BlackElo "2818"]
[TimeControl "180+1"]
[EndTime "14:29:18 PST"]
[Termination "DanielNaroditsky won on time"]

1. e4 {[%clk 0:03:00.9]} 1... e6 {[%clk 0:03:00]} 2. d4 {[%clk 0:02:57.7]} 2...
d5 {[%clk 0:03:00.1]} 3. e5 {[%clk 0:02:56.5]} 3... c5 {[%clk 0:03:00.3]} 4. Nf3
{[%clk 0:02:57.1]} 4... Nc6 {[%clk 0:02:58]} 5. Bd3 {[%clk 0:02:57.4]} 5... cxd4
{[%clk 0:02:56.3]} 6. O-O {[%clk 0:02:57]} 6... Nge7 {[%clk 0:02:50.1]} 7. Nbd2
{[%clk 0:02:51.8]} 7... Ng6 {[%clk 0:02:48.3]} 8. Re1 {[%clk 0:02:52.3]} 8...
Qc7 {[%clk 0:02:36.8]} 9. Bxg6 {[%clk 0:02:52.2]} 9... hxg6 {[%clk 0:02:36.5]}
10. Nb3 {[%clk 0:02:53]} 10... Bd7 {[%clk 0:02:24.5]} 11. Nbxd4 {[%clk
0:02:48.5]} 11... a6 {[%clk 0:02:15.7]} 12. Bf4 {[%clk 0:02:39.5]} 12... Be7
{[%clk 0:02:10.4]} 13. c3 {[%clk 0:02:35.2]} 13... Rc8 {[%clk 0:02:10.4]} 14.
Qd2 {[%clk 0:02:21.4]} 14... Na5 {[%clk 0:02:04.8]} 15. Bg5 {[%clk 0:02:18.6]}
15... Nc4 {[%clk 0:01:53.5]} 16. Qe2 {[%clk 0:01:55.1]} 16... Bc5 {[%clk
0:01:24.2]} 17. b3 {[%clk 0:01:46]} 17... Na5 {[%clk 0:01:13.9]} 18. h4 {[%clk
0:01:31.8]} 18... Nc6 {[%clk 0:01:10.9]} 19. Rad1 {[%clk 0:01:25.5]} 19... b5
{[%clk 0:01:07.8]} 20. Qe3 {[%clk 0:01:19.8]} 20... Bb6 {[%clk 0:00:44]} 21. Qf4
{[%clk 0:01:11.1]} 21... Ne7 {[%clk 0:00:40.2]} 22. Bxe7 {[%clk 0:01:08.6]}
22... Kxe7 {[%clk 0:00:41.1]} 23. Ng5 {[%clk 0:00:58.6]} 23... Rhf8 {[%clk
0:00:26.4]} 24. Rd3 {[%clk 0:00:53.8]} 24... Bxd4 {[%clk 0:00:16.2]} 25. cxd4
{[%clk 0:00:47.4]} 25... Qc2 {[%clk 0:00:16.3]} 26. Rf3 {[%clk 0:00:47.6]} 26...
Qf5 {[%clk 0:00:11.5]} 27. Qd2 {[%clk 0:00:46.5]} 27... Qc2 {[%clk 0:00:09]} 28.
Qb4+ {[%clk 0:00:43]} 28... Ke8 {[%clk 0:00:09.6]} 29. Ree3 {[%clk 0:00:27.5]}
29... Qc1+ {[%clk 0:00:02.1]} 30. Kh2 {[%clk 0:00:27.1]} 30... Qb1 {[%clk
0:00:01.7]} 31. Rc3 {[%clk 0:00:16.5]} 31... Rh8 {[%clk 0:00:01.5]} 32. Rxc8+
{[%clk 0:00:12.4]} 32... Bxc8 {[%clk 0:00:02.4]} 33. Rxf7 {[%clk 0:00:07.1]}
33... Rxh4+ {[%clk 0:00:01.8]} 34. Kg3 {[%clk 0:00:07.9]} 1-0

[Event "Late-Titled-Tuesday-Blitz-February-06-2024"]
[Site "Chess.com"]
[Date "2024.02.06"]
[Round "3"]
[White "ChuckPhil"]
[Black "Chemim21"]
[Result "1-0"]
[WhiteElo "2493"]
[BlackElo "2233"]
[TimeControl "180+1"]
[EndTime "14:29:18 PST"]
[Termination "ChuckPhil won on time"]

1. d4 {[%clk 0:03:00.9]} 1... d5 {[%clk 0:02:59.8]} 2. c4 {[%clk 0:03:01]} 2...
e6 {[%clk 0:03:00.2]} 3. Nf3 {[%clk 0:03:01.4]} 3... Nf6 {[%clk 0:02:59.6]} 4.
g3 {[%clk 0:03:01.8]} 4... Be7 {[%clk 0:02:59.5]} 5. Bg2 {[%clk 0:03:02.2]} 5...
O-O {[%clk 0:02:59.7]} 6. Nc3 {[%clk 0:03:02.6]} 6... b6 {[%clk 0:02:57.6]} 7.
cxd5 {[%clk 0:03:02]} 7... exd5 {[%clk 0:02:55.8]} 8. O-O {[%clk 0:03:01.8]}
8... a6 {[%clk 0:02:54.8]} 9. Bf4 {[%clk 0:03:01.9]} 9... Bb7 {[%clk 0:02:54.5]}
10. Rc1 {[%clk 0:03:01.4]} 10... Nbd7 {[%clk 0:02:45.8]} 11. Ne5 {[%clk
0:02:54.6]} 11... Bd6 {[%clk 0:02:22.9]} 12. Qb3 {[%clk 0:02:44.6]} 12... Bxe5
{[%clk 0:01:48.9]} 13. dxe5 {[%clk 0:02:43.3]} 13... Nc5 {[%clk 0:01:38.2]} 14.
Qd1 {[%clk 0:02:42.1]} 14... Nh5 {[%clk 0:01:37.6]} 15. Nxd5 {[%clk 0:02:30.2]}
15... Bxd5 {[%clk 0:01:32.1]} 16. Bxd5 {[%clk 0:02:30.1]} 16... Nxf4 {[%clk
0:01:31.8]} 17. Bxa8 {[%clk 0:02:12.5]} 17... Qxa8 {[%clk 0:01:21.3]} 18. gxf4
{[%clk 0:02:11.7]} 18... Qe4 {[%clk 0:01:19.3]} 19. Qd2 {[%clk 0:01:51.7]} 19...
g5 {[%clk 0:01:05.4]} 20. f3 {[%clk 0:01:36.3]} 20... Qf5 {[%clk 0:00:52.8]} 21.
e4 {[%clk 0:01:34.5]} 21... Qxf4 {[%clk 0:00:41.6]} 22. Qxf4 {[%clk 0:01:33.1]}
22... gxf4 {[%clk 0:00:42.5]} 23. Rfd1 {[%clk 0:01:27.8]} 23... a5 {[%clk
0:00:40.6]} 24. Kg2 {[%clk 0:01:18.5]} 24... Re8 {[%clk 0:00:38.5]} 25. Rd5
{[%clk 0:01:14.5]} 25... c6 {[%clk 0:00:28.2]} 26. Rd6 {[%clk 0:01:08.2]} 26...
Rxe5 {[%clk 0:00:28.3]} 27. Rxc6 {[%clk 0:01:08.2]} 27... Rg5+ {[%clk
0:00:26.7]} 28. Kf1 {[%clk 0:01:08]} 28... Rh5 {[%clk 0:00:20.5]} 29. Rc2 {[%clk
0:01:05.9]} 29... Ne6 {[%clk 0:00:14.1]} 30. Rxb6 {[%clk 0:01:03.8]} 30... Nd4
{[%clk 0:00:14.2]} 31. Rf2 {[%clk 0:01:01.8]} 31... Rc5 {[%clk 0:00:09.9]} 32.
Kg2 {[%clk 0:00:59.1]} 32... Nc2 {[%clk 0:00:07.3]} 33. h4 {[%clk 0:00:40.9]}
33... Rh5 {[%clk 0:00:06.2]} 34. Kh3 {[%clk 0:00:40.5]} 34... Ne3 {[%clk
0:00:05.8]} 35. Rf6 {[%clk 0:00:32.6]} 35... Rc5 {[%clk 0:00:02.3]} 36. Rxf4
{[%clk 0:00:32.1]} 36... Rc1 {[%clk 0:00:03.2]} 37. Kh2 {[%clk 0:00:29.9]} 37...
Nf1+ {[%clk 0:00:01.7]} 38. Kh3 {[%clk 0:00:27.3]} 38... Ne3 {[%clk 0:00:01.8]}
39. Rf6 {[%clk 0:00:25]} 39... Kg7 {[%clk 0:00:01.1]} 40. Ra6 {[%clk 0:00:24.4]}
1-0